bitfinex/quotes_SOLUSD_20250410
["timestamp","ask_amount","ask_price","bid_price","bid_amount"]
[1744246554464,0.063,117.16,117.15,94.17364954]
[1744246555880,0.063,117.16,117.15,102.70964954]
[1744246557192,0.063,117.16,117.15,121.64362154]
[1744246560089,0.063,117.16,117.15,125.91910422]
[1744246560387,0.063,117.16,117.15,102.70964954]
[1744246561793,0.063,117.16,117.15,125.8746098]
[1744246563492,0.03,117.18,117.17,44.933972]
[1744246563692,0.03,117.21,117.2,44.933972]
[1744246563899,0.03,117.21,117.2,156.00002154]
[1744246564393,0.063,117.23,117.21,19.433972]
[1744246564581,0.063,117.23,117.22,32.03372154]
[1744246564776,6.5863,117.28,117.22,32.03372154]
[1744246564777,6.5863,117.28,117.25,26.0]
[1744246564985,6.5863,117.31,117.27,13.09974954]
[1744246565174,6.5863,117.31,117.28,13.09974954]
[1744246565376,15.1108,117.31,117.27,94.17364954]
[1744246566078,6.5863,117.31,117.28,13.09974954]
[1744246566278,6.5863,117.31,117.29,13.09974954]
[1744246566489,6.5863,117.31,117.3,13.09974954]
[1744246566799,1.5913,117.33,117.3,94.17364954]
[1744246567386,1.5913,117.33,117.3,81.0739]
[1744246567897,1.5913,117.33,117.3,101.47542031]
[1744246568396,10.1143,117.33,117.3,81.0739]
[1744246568996,1.5913,117.33,117.3,110.00032031]
[1744246569188,8.521,117.36,117.32,20.40152031]
[1744246569497,8.521,117.36,117.32,101.47542031]
[1744246569689,37.09952031,117.37,117.32,101.47542031]
[1744246569890,37.09952031,117.37,117.32,109.99892031]
[1744246570081,35.50822031,117.37,117.32,101.47542031]
[1744246570275,20.40152031,117.36,117.32,81.0739]
[1744246571084,20.40152031,117.36,117.3,81.0739]
[1744246571298,35.50822031,117.37,117.32,20.40152031]
[1744246571900,8.5215,117.35,117.31,20.40152031]
[1744246573004,8.521,117.36,117.32,20.40152031]
[1744246573498,35.50812031,117.37,117.32,101.47542031]
[1744246573677,15.1066,117.37,117.33,20.40152031]
[1744246574301,15.1066,117.37,117.32,89.5973]
[1744246574478,15.1066,117.37,117.33,20.40152031]
[1744246575598,35.50812031,117.37,117.32,101.47542031]
[1744246575784,35.50812031,117.37,117.31,8.5241]
[1744246575785,39.33549231,117.36,117.31,20.40152031]
[1744246575990,20.40152031,117.36,117.31,20.40152031]
[1744246576193,35.50812031,117.37,117.32,20.40152031]
[1744246576392,56.80822031,117.37,117.32,20.40152031]
[1744246576794,56.80822031,117.37,117.3,8.5248]
[1744246576795,20.40152031,117.35,117.3,20.40152031]
[1744246578492,28.92372031,117.34,117.29,101.47542031]
[1744246580895,8.5222,117.34,117.3,20.40152031]
[1744246581091,8.5222,117.34,117.31,20.40152031]
[1744246581498,8.5218,117.35,117.31,20.40152031]
[1744246581702,8.5218,117.35,117.32,20.40152031]
[1744246581896,8.521,117.36,117.33,20.40152031]
[1744246582288,15.1067,117.37,117.33,20.40152031]
[1744246582502,15.1067,117.37,117.34,20.40152031]
[1744246582704,6.5863,117.37,117.34,20.40152031]
[1744246583208,6.5863,117.37,117.33,28.92402031]
[1744246583906,6.5863,117.37,117.34,28.92372031]
[1744246584105,6.5863,117.37,117.35,20.40152031]
[1744246584310,14.8542,117.4,117.36,20.40152031]
[1744246584502,6.3363,117.4,117.36,101.47542031]
[1744246584709,6.3363,117.4,117.37,20.40152031]
[1744246585211,0.03,117.42,117.39,20.40152031]
[1744246585395,0.03,117.42,117.4,20.40152031]
[1744246585595,0.03,117.42,117.39,101.47542031]
[1744246585902,0.03,117.42,117.39,109.99382031]
[1744246586303,0.03,117.42,117.41,20.40152031]
[1744246586809,0.03,117.42,117.39,89.5923]
[1744246586810,0.03,117.42,117.39,101.47542031]
[1744246587694,0.31432314,117.42,117.39,101.47542031]
[1744246587888,18.64964886,117.41,117.37,20.40152031]
[1744246588309,8.0729,117.4,117.37,20.40152031]
[1744246588611,8.0729,117.4,117.36,101.47542031]
[1744246589820,8.5186,117.39,117.36,101.47542031]
[1744246590718,8.5186,117.39,117.37,20.40152031]
[1744246591105,8.5186,117.39,117.36,101.47542031]
[1744246591602,16.5911,117.4,117.36,101.47542031]
[1744246591806,16.5911,117.4,117.37,20.40152031]
[1744246591999,15.0263,117.4,117.37,20.40152031]
[1744246593219,15.0263,117.4,117.36,101.47542031]
[1744246593823,15.0263,117.4,117.36,81.0739]
[1744246593993,15.0263,117.4,117.36,101.47542031]
[1744246594416,15.0263,117.4,117.36,81.0739]
[1744246594716,15.0263,117.4,117.36,101.47542031]
[1744246595221,15.0263,117.4,117.37,20.40152031]
[1744246598121,15.0263,117.4,117.36,109.99602031]
[1744246598417,15.0263,117.4,117.36,89.5945]
[1744246598624,35.42782031,117.4,117.36,89.5945]
[1744246598823,35.42782031,117.4,117.36,109.99602031]
[1744246599319,18.64964886,117.39,117.35,109.99652031]
[1744246599715,27.16834886,117.39,117.35,109.99652031]
[1744246599910,15.0261,117.4,117.36,20.40152031]
[1744246600702,15.0261,117.4,117.37,20.40152031]
[1744246601200,15.026,117.4,117.37,20.40152031]
[1744246601403,6.5081,117.4,117.37,20.40152031]
[1744246602322,6.5081,117.4,117.37,28.92152031]
[1744246603013,15.026,117.4,117.36,8.5204]
[1744246603325,15.026,117.4,117.37,13.0409228]
[1744246603628,6.5081,117.4,117.37,21.5609228]
[1744246605526,15.026,117.4,117.37,13.0409228]
[1744246606104,6.5081,117.4,117.37,21.5609228]
[1744246607321,0.03,117.42,117.38,13.0409228]
[1744246607523,0.03,117.42,117.39,13.0409228]
[1744246607731,0.03,117.42,117.39,94.1148228]
[1744246608108,0.03,117.42,117.4,8.5178]
[1744246608731,0.03,117.42,117.39,102.6330228]
[1744246609424,0.03,117.42,117.39,89.5921]
[1744246610424,0.03,117.42,117.39,102.6330228]
[1744246611613,31.72057166,117.42,117.39,81.0739]
[1744246611909,13.0409228,117.41,117.36,94.1148228]
[1744246612126,31.72057166,117.42,117.36,94.1148228]
[1744246612311,31.72057166,117.42,117.37,13.0409228]
[1744246613010,8.5171,117.41,117.37,21.5606228]
[1744246614615,0.03,117.42,117.4,13.0409228]
[1744246615310,18.67964886,117.42,117.38,13.0409228]
[1744246615934,18.67964886,117.42,117.39,13.0409228]
[1744246616238,0.03,117.42,117.39,13.0409228]
[1744246616412,0.03,117.42,117.4,8.5178]
[1744246617036,0.03,117.42,117.39,8.5183]
[1744246617337,0.03,117.42,117.39,21.5592228]
[1744246618047,18.67964886,117.42,117.38,81.0739]
[1744246618332,18.64964886,117.4,117.35,81.0739]
[1744246618536,27.16784886,117.4,117.36,13.0409228]
[1744246619142,27.16784886,117.4,117.36,21.5615228]
[1744246619341,18.64964886,117.4,117.36,28.89828831]
[1744246620639,18.64964886,117.39,117.36,81.0739]
[1744246620939,18.64964886,117.38,117.34,20.37768831]
[1744246621840,27.16914886,117.38,117.34,28.89978831]
[1744246622021,55.80373717,117.38,117.33,118.29408831]
[1744246622224,35.42604886,117.38,117.34,20.37768831]
[1744246622924,35.42604886,117.38,117.33,97.9164]
[1744246623137,35.42604886,117.38,117.34,20.37768831]
[1744246623342,35.42604886,117.38,117.34,28.89968831]
[1744246623842,35.42604886,117.38,117.34,20.37768831]
[1744246624037,39.02733717,117.35,117.3,101.45158831]
[1744246624342,39.02733717,117.35,117.3,109.97618831]
[1744246624943,39.02733717,117.37,117.32,20.37768831]
[1744246625157,0.28432314,117.36,117.32,20.37768831]
[1744246625642,0.28432314,117.36,117.32,28.90068831]
[1744246627721,18.64964886,117.37,117.32,109.97458831]
[1744246628435,27.16964886,117.37,117.32,109.97458831]
[1744246629146,18.64964886,117.37,117.33,20.37768831]
[1744246629335,18.64964886,117.37,117.34,20.37768831]
[1744246629748,18.64964886,117.37,117.34,28.89978831]
[1744246630550,8.2569,117.38,117.34,28.89978831]
[1744246631549,8.2569,117.38,117.35,20.37768831]
[1744246631955,8.2569,117.38,117.35,28.89848831]
[1744246632330,8.2569,117.38,117.35,109.97238831]
[1744246633032,18.64964886,117.4,117.36,20.37768831]
[1744246633242,18.64964886,117.4,117.36,101.45158831]
[1744246633439,7.7063,117.41,117.36,101.45158831]
[1744246633645,7.7063,117.41,117.37,20.37768831]
[1744246633847,7.7063,117.41,117.38,20.37768831]
[1744246634050,7.7063,117.41,117.38,28.89678831]
[1744246634459,16.2234,117.41,117.38,20.37768831]
[1744246634639,16.2234,117.41,117.37,28.89738831]
[1744246635736,20.40768831,117.42,117.37,109.97128831]
[1744246635949,20.40768831,117.42,117.41,20.37768831]
[1744246635950,0.03,117.42,117.41,20.37768831]
[1744246636253,0.03,117.42,117.41,101.45158831]
[1744246636755,0.03,117.42,117.41,81.0739]
[1744246636940,0.03,117.42,117.4,101.45158831]
[1744246637957,0.03,117.42,117.41,8.5171]
[1744246638254,0.03,117.42,117.41,28.89478831]
[1744246639536,0.03,117.42,117.41,8.5171]
[1744246639854,0.03,117.42,117.41,28.89478831]
[1744246641253,0.03,117.42,117.41,109.96868831]
[1744246644559,0.03,117.42,117.41,89.591]
[1744246644757,0.03,117.42,117.41,109.96868831]
[1744246644954,0.03,117.42,117.39,21.2956]
[1744246644955,0.03,117.42,117.39,101.45158831]
[1744246645165,7.7363,117.42,117.39,81.0739]
[1744246645339,28.11398831,117.42,117.39,81.0739]
[1744246645537,7.7363,117.42,117.39,81.0739]
[1744246647660,16.2527,117.42,117.39,81.0739]
[1744246648065,7.7363,117.42,117.39,89.5922]
[1744246648362,7.7363,117.42,117.39,109.96988831]
[1744246648539,7.7363,117.42,117.39,28.89598831]
[1744246649564,7.7363,117.42,117.39,8.5183]
[1744246649764,7.7363,117.42,117.39,28.89598831]
[1744246650357,7.7363,117.42,117.39,8.5183]
[1744246651268,7.7363,117.42,117.39,28.89598831]
[1744246651759,7.7363,117.42,117.41,46.37768831]
[1744246651760,0.03,117.42,117.41,46.37768831]
[1744246652068,0.03,117.42,117.41,20.37768831]
[1744246654479,0.03,117.42,117.41,28.89478831]
[1744246655059,0.03,117.42,117.39,109.96998831]
[1744246655255,0.03,117.42,117.41,20.37768831]
[1744246655457,0.03,117.42,117.4,20.37768831]
[1744246655854,0.03,117.42,117.39,109.96998831]
[1744246656160,0.03,117.42,117.39,81.0739]
[1744246656869,18.67964886,117.42,117.38,81.0739]
[1744246657068,39.05733717,117.42,117.38,89.5931]
[1744246657364,18.67964886,117.42,117.38,109.97078831]
[1744246658547,27.19604886,117.42,117.38,109.97078831]
[1744246659350,18.67964886,117.42,117.38,109.97078831]
[1744246659870,0.03,117.42,117.39,20.37768831]
[1744246660371,0.03,117.42,117.4,8.5178]
[1744246660564,0.03,117.42,117.39,28.89598831]
[1744246661670,0.03,117.42,117.41,20.37768831]
[1744246661848,0.03,117.42,117.4,20.37768831]
[1744246662461,0.03,117.42,117.4,28.89528831]
[1744246662963,0.03,117.42,117.41,20.37768831]
[1744246664548,0.03,117.42,117.41,28.89478831]
[1744246665874,0.03,117.42,117.41,109.96868831]
[1744246670974,0.03,117.42,117.41,101.45158831]
[1744246671367,0.03,117.42,117.4,101.45158831]
[1744246671770,0.03,117.42,117.4,81.0739]
[1744246671971,0.03,117.42,117.4,101.45158831]
[1744246672555,0.03,117.42,117.41,20.37768831]
[1744246674377,0.03,117.42,117.41,28.89478831]
[1744246674778,0.03,117.42,117.41,20.37768831]
[1744246676384,0.03,117.42,117.41,101.45158831]
[1744246676880,0.03,117.42,117.41,81.0739]
[1744246679888,8.5178,117.4,117.38,81.0739]
[1744246680088,8.5178,117.4,117.37,94.10682974]
[1744246680658,10.0385,117.41,117.38,13.03292974]
[1744246681587,1.521,117.41,117.38,21.55212974]
[1744246681778,1.521,117.41,117.39,13.03292974]
[1744246683881,0.03,117.42,117.39,21.55132974]
[1744246685187,0.03,117.42,117.39,102.62522974]
[1744246685975,0.03,117.42,117.4,13.03292974]
[1744246686371,0.03,117.42,117.41,13.03292974]
[1744246687881,0.03,117.42,117.41,21.55002974]
[1744246688575,0.03,117.42,117.41,102.62392974]
[1744246695003,0.03,117.42,117.41,109.47461284]
[1744246695503,0.03,117.42,117.41,102.62392974]
[1744246697088,0.0001,117.42,117.41,155.03997184]
[1744246697579,0.0001,117.42,117.41,102.62392974]
[1744246698908,0.03,117.45,117.44,26.0]
[1744246699106,0.03,117.45,117.44,120.10682974]
[1744246700205,0.03,117.45,117.44,115.5888]
[1744246700402,0.03,117.45,117.44,128.62172974]
[1744246701903,0.03,117.45,117.44,136.92172974]
[1744246706716,0.03,117.46,117.44,136.92172974]
[1744246706912,0.03,117.46,117.45,13.03292974]
[1744246707120,0.03,117.46,117.45,94.10682974]
[1744246707934,0.03,117.46,117.45,102.62102974]
[1744246717118,0.03,117.46,117.45,89.5881]
[1744246717418,0.03,117.46,117.45,102.62102974]
[1744246718913,0.03,117.49,117.48,26.0]
[1744246719138,0.03,117.49,117.48,120.10682974]
[1744246719718,0.03,117.49,117.48,128.61882974]
[1744246722448,0.03,117.49,117.48,180.7505487]
[1744246722631,0.03,117.49,117.48,128.61882974]
[1744246724043,0.0001,117.49,117.48,180.7505487]
[1744246725142,0.0001,117.49,117.48,181.03487184]
[1744246725441,8.2584,117.55,117.48,181.03487184]
[1744246725442,8.2584,117.63,117.52,51.12]
[1744246725658,14.63402974,117.54,117.49,13.03292974]
[1744246725826,6.6573,117.53,117.49,13.03292974]
[1744246726320,19.69022974,117.53,117.48,13.03292974]
[1744246726520,13.03292974,117.52,117.47,21.54572974]
[1744246726719,15.1659,117.53,117.5,13.03292974]
[1744246726915,22.11428675,117.56,117.47,8.5128]
[1744246727226,8.2584,117.57,117.53,13.03292974]
[1744246727427,29.79692974,117.57,117.52,13.03292974]
[1744246727637,21.29132974,117.57,117.52,13.03292974]
[1744246727839,13.03292974,117.56,117.48,103.25171896]
[1744246728035,29.79702974,117.57,117.51,13.03292974]
[1744246728434,29.79702974,117.57,117.51,21.54222974]
[1744246728635,18.79181043,117.56,117.51,21.54222974]
[1744246730246,18.79181043,117.56,117.51,8.5093]
[1744246730447,18.79181043,117.56,117.51,21.54222974]
[1744246730638,18.79181043,117.56,117.51,102.61612974]
[1744246730945,18.79181043,117.56,117.52,13.03292974]
[1744246731731,18.79181043,117.56,117.52,8.5087]
[1744246731934,13.17509131,117.55,117.51,89.5834]
[1744246732134,13.17509131,117.55,117.51,81.0739]
[1744246732330,13.03292974,117.54,117.47,21.2813]
[1744246732549,0.14216157,117.55,117.48,8.512]
[1744246732550,1.6011,117.52,117.48,8.512]
[1744246732735,14.63402974,117.52,117.48,8.512]
[1744246733450,1.6011,117.52,117.48,8.512]
[1744246734655,1.6011,117.52,117.48,21.54492974]
[1744246735052,14.63402974,117.52,117.48,8.512]
[1744246735253,23.14332974,117.52,117.48,8.512]
[1744246735453,23.14332974,117.52,117.47,21.54532974]
[1744246735635,31.96690174,117.51,117.47,8.5124]
[1744246736162,40.47690174,117.51,117.47,8.5124]
[1744246736457,40.47690174,117.51,117.46,21.54602974]
[1744246736645,18.933972,117.51,117.46,21.54602974]
[1744246736845,1.6011,117.52,117.48,13.03292974]
[1744246738057,1.6011,117.52,117.49,13.03292974]
[1744246738237,1.6011,117.52,117.5,8.5106]
[1744246739649,1.6011,117.52,117.49,8.5113]
[1744246739971,1.6011,117.52,117.49,21.54422974]
[1744246742562,1.6011,117.52,117.49,8.5113]
[1744246743258,1.6011,117.52,117.49,21.54422974]
[1744246745274,1.6011,117.52,117.5,13.03292974]
[1744246747343,1.6011,117.52,117.49,21.54372974]
[1744246749269,18.933972,117.51,117.46,81.0739]
[1744246749454,13.03292974,117.5,117.45,21.54652974]
[1744246750571,8.5107,117.5,117.46,13.03292974]
[1744246750770,40.47710174,117.51,117.46,13.03292974]
[1744246751771,40.47710174,117.51,117.46,21.54602974]
[1744246752756,27.444172,117.51,117.47,13.03292974]
[1744246752951,23.14352974,117.52,117.47,13.03292974]
[1744246753781,23.14352974,117.52,117.45,29.7989]
[1744246753957,31.96690174,117.51,117.46,13.03292974]
[1744246754373,31.96690174,117.51,117.45,8.5142]
[1744246754559,31.96690174,117.51,117.46,13.03292974]
[1744246755061,18.933972,117.51,117.47,13.03292974]
[1744246755750,27.444372,117.51,117.46,21.54582974]
[1744246756476,27.444372,117.51,117.47,13.03292974]
[1744246756974,18.64964886,117.51,117.47,21.54502974]
[1744246758078,1.88542314,117.52,117.47,21.54502974]
[1744246758385,1.6011,117.52,117.49,13.03292974]
[1744246759078,1.6011,117.52,117.5,21.54352974]
[1744246759580,6.6573,117.53,117.5,21.54352974]
[1744246759758,6.6573,117.53,117.51,13.03292974]
[1744246759967,6.6573,117.53,117.5,21.54352974]
[1744246761267,16.3788,117.55,117.51,13.03292974]
[1744246762289,35.02844886,117.55,117.51,21.54232974]
[1744246763976,48.0613786,117.55,117.51,13.03292974]
[1744246764182,48.0613786,117.55,117.5,102.61702974]
[1744246764557,31.96690174,117.54,117.5,81.0739]
[1744246764994,13.03292974,117.52,117.46,81.0739]
[1744246765188,6.301,117.5,117.46,102.61992974]
[1744246765868,6.301,117.5,117.46,13.03292974]
[1744246766069,18.933972,117.48,117.44,94.16982974]
[1744246766274,31.96690174,117.48,117.44,0.063]
[1744246766883,13.03292974,117.47,117.44,0.063]
[1744246768289,8.5135,117.46,117.44,0.063]
[1744246769260,21.54612974,117.47,117.44,0.063]
[1744246773568,40.47930174,117.48,117.44,0.063]
[1744246773769,18.933972,117.48,117.44,0.063]
[1744246774086,1.5075,117.49,117.46,13.03292974]
[1744246774288,1.5075,117.49,117.45,13.03292974]
[1744246775591,10.0189,117.49,117.45,21.54702974]
[1744246775889,10.0189,117.49,117.45,13.03292974]
[1744246776091,10.0189,117.49,117.45,21.54702974]
[1744246777591,23.05182974,117.49,117.45,8.5141]
[1744246777794,23.05182974,117.49,117.44,102.68432974]
[1744246777998,31.96690174,117.48,117.44,89.6514]
[1744246778494,31.96690174,117.48,117.44,81.1369]
[1744246778973,31.96690174,117.48,117.44,0.063]
[1744246779692,40.47960174,117.48,117.44,0.063]
[1744246782683,27.446672,117.48,117.44,0.063]
[1744246782885,27.446672,117.48,117.44,21.61032974]
[1744246783084,1.5075,117.49,117.45,13.03292974]
[1744246783288,6.301,117.5,117.47,13.03292974]
[1744246784293,6.301,117.5,117.47,21.54512974]
[1744246785104,8.5102,117.51,117.47,21.54512974]
[1744246785878,0.28432314,117.51,117.47,21.54512974]
[1744246786294,20.28974886,117.52,117.48,13.03292974]
[1744246786878,18.64964886,117.52,117.48,13.03292974]
[1744246787813,27.15874886,117.52,117.48,13.03292974]
[1744246788405,18.64964886,117.52,117.48,21.54452974]
[1744246788809,19.50495288,117.53,117.48,102.61842974]
[1744246789016,6.47202314,117.53,117.49,13.03292974]
[1744246789396,14.98052314,117.53,117.49,13.03292974]
[1744246789594,28.01345288,117.53,117.49,13.03292974]
[1744246789804,28.01345288,117.53,117.49,21.54382974]
[1744246789986,28.01345288,117.53,117.49,8.5109]
[1744246790487,1.6401,117.54,117.51,13.03292974]
[1744246790686,1.6401,117.54,117.49,110.8632]
[1744246790909,1.6401,117.54,117.51,13.03292974]
[1744246791114,1.6401,117.54,117.5,13.03292974]
[1744246791294,10.1478,117.54,117.49,89.5848]
[1744246791603,23.18072974,117.54,117.49,102.61772974]
[1744246794098,10.1478,117.54,117.49,102.61772974]
[1744246794298,23.18072974,117.54,117.49,102.61772974]
[1744246794507,10.1478,117.54,117.5,21.54322974]
[1744246794689,1.6401,117.54,117.5,21.54322974]
[1744246795411,14.67302974,117.54,117.5,8.5103]
[1744246796006,23.18082974,117.54,117.5,8.5103]
[1744246796817,14.67302974,117.54,117.5,8.5103]
[1744246797313,31.6825786,117.55,117.5,21.54322974]
[1744246797506,18.64964886,117.55,117.51,13.03292974]
[1744246798333,18.64964886,117.55,117.51,21.54212974]
[1744246799125,31.6825786,117.55,117.51,8.5092]
[1744246800534,40.1896786,117.55,117.51,8.5092]
[1744246800815,18.933972,117.53,117.47,21.281]
[1744246801012,13.31725288,117.5,117.45,102.62062974]
[1744246801213,13.03292974,117.48,117.45,81.0739]
[1744246801416,13.03292974,117.47,117.44,0.063]
[1744246801613,40.09980174,117.46,117.44,0.063]
[1744246801807,21.16582974,117.46,117.44,0.063]
[1744246802016,8.1329,117.46,117.44,0.063]
[1744246802393,8.1329,117.46,117.44,8.5779]
[1744246802620,6.5772,117.49,117.45,13.03292974]
[1744246802802,6.5772,117.49,117.46,13.03292974]
[1744246803308,6.5772,117.49,117.46,20.34505596]
[1744246803697,6.5772,117.52,117.48,20.34505596]
[1744246803917,25.22684886,117.52,117.48,20.34505596]
[1744246804298,54.08120482,117.52,117.45,89.3339]
[1744246804509,54.08120482,117.52,117.47,20.34505596]
[1744246804709,25.22684886,117.52,117.48,20.34505596]
[1744246805099,6.5772,117.52,117.48,20.34505596]
[1744246805319,6.5772,117.52,117.49,20.34505596]
[1744246805628,6.5772,117.52,117.46,110.8712]
[1744246805812,35.43145596,117.52,117.48,20.34505596]
[1744246806123,6.5772,117.52,117.48,20.34505596]
[1744246806726,6.5772,117.52,117.49,8.5113]
[1744246807134,6.5772,117.52,117.49,28.85635596]
[1744246807916,6.5772,117.52,117.48,28.85675596]
[1744246808115,15.0865,117.52,117.48,28.85675596]
[1744246809121,15.0865,117.52,117.48,8.5117]
[1744246809310,15.0865,117.52,117.48,28.85675596]
[1744246810035,6.5772,117.52,117.49,20.34505596]
[1744246810223,6.5772,117.52,117.48,28.85675596]
[1744246810725,6.5772,117.52,117.49,20.34505596]
[1744246811516,6.5772,117.52,117.48,8.5117]
[1744246811719,6.5772,117.52,117.49,20.34505596]
[1744246812127,6.5772,117.52,117.49,28.85595596]
[1744246813328,6.5772,117.52,117.48,20.34505596]
[1744246813710,33.73604886,117.52,117.48,20.34505596]
[1744246814132,6.5772,117.52,117.48,20.34505596]
[1744246814306,6.5772,117.52,117.49,20.34505596]
[1744246814508,1.5557,117.53,117.5,20.34505596]
[1744246814734,1.5557,117.53,117.51,20.34505596]
[1744246814946,10.0572,117.57,117.52,20.34505596]
[1744246815225,1.5513,117.57,117.54,20.34505596]
[1744246815435,1.5513,117.57,117.54,28.85245596]
[1744246815810,1.5513,117.57,117.54,8.5074]
[1744246816525,10.0569,117.57,117.53,28.85315596]
[1744246816730,30.40195596,117.57,117.52,109.92775596]
[1744246817033,18.933972,117.56,117.52,101.41895596]
[1744246817226,18.933972,117.56,117.52,109.92785596]
[1744246817425,27.440272,117.56,117.52,109.92785596]
[1744246818233,27.440272,117.56,117.52,28.85395596]
[1744246818630,18.933972,117.56,117.52,28.85395596]
[1744246819235,18.933972,117.56,117.52,8.5089]
[1744246819443,18.933972,117.56,117.52,28.85395596]
[1744246822418,18.933972,117.56,117.52,8.5089]
[1744246822719,1.5513,117.57,117.53,20.34505596]
[1744246823818,1.5513,117.57,117.55,20.34505596]
[1744246824220,1.5513,117.57,117.55,8.507]
[1744246824811,0.03,117.57,117.55,28.85205596]
[1744246825449,0.03,117.57,117.55,21.50576646]
[1744246825639,0.03,117.57,117.56,12.99876646]
[1744246826134,0.03,117.57,117.56,94.07266646]
[1744246826316,0.03,117.57,117.56,102.57886646]
[1744246827239,0.03,117.57,117.56,121.22851532]
[1744246827429,6.0967,117.65,117.62,20.2850713]
[1744246827631,6.0967,117.65,117.63,20.2850713]
[1744246827941,6.0967,117.65,117.62,101.3289713]
[1744246828131,14.5965,117.65,117.62,81.0439]
[1744246828628,6.0967,117.65,117.62,109.8306713]
[1744246828834,8.4987,117.67,117.62,109.8306713]
[1744246829032,28.7837713,117.67,117.63,20.2850713]
[1744246829228,28.7837713,117.67,117.62,109.8306713]
[1744246830247,8.4987,117.67,117.62,109.8306713]
[1744246830433,28.7837713,117.67,117.62,109.8306713]
[1744246830749,27.9262713,117.65,117.62,81.0439]
[1744246830924,20.2850713,117.64,117.62,81.0439]
[1744246831345,7.6412,117.65,117.62,81.0439]
[1744246831532,27.9262713,117.65,117.62,81.0439]
[1744246832140,39.2190433,117.64,117.62,81.0439]
[1744246832332,39.2190433,117.64,117.59,20.2850713]
[1744246832945,47.7196433,117.64,117.6,20.2850713]
[1744246833143,36.4263713,117.65,117.6,20.2850713]
[1744246833941,16.1413,117.65,117.61,20.2850713]
[1744246834124,16.1413,117.65,117.61,28.7875713]
[1744246834635,36.4263713,117.65,117.57,102.3073]
[1744246834835,36.4263713,117.65,117.6,20.2850713]
[1744246835028,7.6412,117.65,117.62,20.2850713]
[1744246835527,7.6412,117.65,117.61,20.2850713]
[1744246836047,7.6412,117.65,117.62,28.7867713]
[1744246836840,7.6412,117.65,117.63,20.2850713]
[1744246837846,6.0967,117.65,117.63,28.7860713]
[1744246838550,6.0967,117.65,117.63,8.501]
[1744246839246,6.0967,117.65,117.62,20.2850713]
[1744246840059,6.0967,117.65,117.63,20.2850713]
[1744246841051,6.0967,117.65,117.62,89.5452]
[1744246841230,6.0967,117.65,117.63,20.2850713]
[1744246841850,6.0967,117.65,117.63,28.7859713]
[1744246842052,6.0967,117.65,117.63,8.5009]
[1744246842260,6.0967,117.65,117.63,28.7859713]
[1744246842829,6.0967,117.65,117.62,89.5456]
[1744246843044,14.5966,117.65,117.62,81.0439]
[1744246844954,6.0967,117.65,117.62,109.8305713]
[1744246845350,6.0967,117.65,117.63,20.2850713]
[1744246845745,6.0967,117.65,117.62,109.8305713]
[1744246846051,14.5966,117.65,117.62,101.3289713]
[1744246846456,6.0967,117.65,117.63,20.2850713]
[1744246847036,35.464372,117.68,117.63,20.2850713]
[1744246847237,35.464372,117.68,117.64,20.2850713]
[1744246847238,35.18004886,117.68,117.64,20.2850713]
[1744246847942,8.0324,117.68,117.64,20.2850713]
[1744246848258,10.0806,117.71,117.65,8.4997]
[1744246848559,10.0806,117.71,117.67,20.2850713]
[1744246848747,28.73024886,117.71,117.67,20.2850713]
[1744246850163,28.73024886,117.71,117.66,8.4986]
[1744246850460,49.01532016,117.71,117.66,28.7836713]
[1744246850954,28.73024886,117.71,117.66,8.4986]
[1744246851141,49.01532016,117.71,117.66,28.7836713]
[1744246851343,28.73024886,117.71,117.66,28.7836713]
[1744246851561,49.01532016,117.71,117.66,28.7836713]
[1744246852061,28.73024886,117.71,117.66,28.7836713]
[1744246852247,49.01532016,117.71,117.66,109.8275713]
[1744246852446,20.2850713,117.7,117.66,89.5425]
[1744246852641,20.2850713,117.68,117.66,81.0439]
[1744246852840,26.7729713,117.67,117.63,81.0439]
[1744246853866,6.4879,117.67,117.63,89.5451]
[1744246854166,6.4879,117.67,117.63,109.8301713]
[1744246854456,8.499,117.66,117.62,20.2850713]
[1744246854762,39.2190433,117.65,117.6,20.2850713]
[1744246854942,20.2850713,117.64,117.6,81.0439]
[1744246855142,20.2850713,117.63,117.6,81.0439]